[Event "Titled Tuesday Blitz June 21 Early 2022"]
[White "Heinemann, Josefine"]
[Black "Artemenko, Oleg"]
[WhiteFideId "12900460"]
[BlackFideId "14201798"]
[WhiteElo "2300"]
[BlackElo "2287"]
[Result "1-0"]
[Round "04"]
[TimeControl "180+1"]
[Date "2022.06.21"]
[WhiteClock "0:00:46"]
[BlackClock "0:00:02"]

1. e4 {[%clk 0:03:00]}  e6 {[%clk 0:02:59]} 2. d4 {[%clk 0:03:00]}  d5 {[%clk 0:02:59]} 3. Nd2 {[%clk 0:03:01]}  c5 {[%clk 0:02:56]} 4. exd5 {[%clk 0:03:01]}  Qxd5 {[%clk 0:02:57]} 5. Ngf3 {[%clk 0:03:01]}  cxd4 {[%clk 0:02:57]} 6. Bc4 {[%clk 0:03:02]}  Qd7 {[%clk 0:02:58]} 7. O-O {[%clk 0:03:02]}  Nc6 {[%clk 0:02:58]} 8. Nb3 {[%clk 0:03:03]}  Nf6 {[%clk 0:02:59]} 9. Nbxd4 {[%clk 0:03:03]}  Nxd4 {[%clk 0:02:59]} 10. Nxd4 {[%clk 0:03:04]}  a6 {[%clk 0:03:00]} 11. Re1 {[%clk 0:03:04]}  b5 {[%clk 0:02:59]} 12. Bf1 {[%clk 0:03:02]}  Bb7 {[%clk 0:02:58]} 13. c3 {[%clk 0:02:58]}  Be7 {[%clk 0:02:54]} 14. a4 {[%clk 0:02:57]}  bxa4 {[%clk 0:02:49]} 15. Qxa4 {[%clk 0:02:56]}  O-O {[%clk 0:02:47]} 16. Qxd7 {[%clk 0:02:55]}  Nxd7 {[%clk 0:02:48]} 17. Be3 {[%clk 0:02:51]}  Rfc8 {[%clk 0:02:46]} 18. Ra5 {[%clk 0:02:46]}  Bd8 {[%clk 0:02:43]} 19. Ra3 {[%clk 0:02:42]}  Ne5 {[%clk 0:02:40]} 20. Rea1 {[%clk 0:02:40]}  Nc4 {[%clk 0:02:39]} 21. Bxc4 {[%clk 0:02:40]}  Rxc4 {[%clk 0:02:40]} 22. Rb3 {[%clk 0:02:40]}  Bd5 {[%clk 0:02:39]} 23. Rba3 {[%clk 0:02:36]}  Rb8 {[%clk 0:02:17]} 24. b4 {[%clk 0:02:27]}  Bb7 {[%clk 0:02:16]} 25. h3 {[%clk 0:02:25]}  Rbc8 {[%clk 0:02:14]} 26. Ne2 {[%clk 0:02:23]}  e5 {[%clk 0:02:10]} 27. Bc5 {[%clk 0:02:20]}  a5 {[%clk 0:01:44]} 28. Rd1 {[%clk 0:02:15]}  axb4 {[%clk 0:01:44]} 29. cxb4 {[%clk 0:02:16]}  Bc6 {[%clk 0:01:45]} 30. Rad3 {[%clk 0:02:15]}  Bf6 {[%clk 0:01:42]} 31. Ng3 {[%clk 0:02:10]}  g6 {[%clk 0:01:39]} 32. f3 {[%clk 0:02:04]}  Kg7 {[%clk 0:01:36]} 33. Re3 {[%clk 0:01:58]}  Bg5 {[%clk 0:01:31]} 34. Re2 {[%clk 0:01:58]}  f5 {[%clk 0:01:28]} 35. Rxe5 {[%clk 0:01:54]}  Ba4 {[%clk 0:01:23]} 36. Rde1 {[%clk 0:01:44]}  Kh6 {[%clk 0:01:15]} 37. Re6 {[%clk 0:01:41]}  Bc2 {[%clk 0:01:02]} 38. Nf1 {[%clk 0:01:30]}  Ra8 {[%clk 0:00:35]} 39. Ne3 {[%clk 0:01:30]}  Bxe3+ {[%clk 0:00:29]} 40. Bxe3+ {[%clk 0:01:24]}  f4 {[%clk 0:00:29]} 41. Bc5 {[%clk 0:01:15]}  Bf5 {[%clk 0:00:26]} 42. R6e2 {[%clk 0:01:14]}  Kh5 {[%clk 0:00:21]} 43. Kh2 {[%clk 0:01:14]}  Ra3 {[%clk 0:00:19]} 44. Rd2 {[%clk 0:01:10]}  Rb3 {[%clk 0:00:19]} 45. Red1 {[%clk 0:01:07]}  h6 {[%clk 0:00:18]} 46. Rd4 {[%clk 0:00:59]}  Rc2 {[%clk 0:00:06]} 47. Rxf4 {[%clk 0:00:58]}  Rbb2 {[%clk 0:00:07]} 48. Rg1 {[%clk 0:00:58]}  Kg5 {[%clk 0:00:06]} 49. Be3 {[%clk 0:00:50]}  Kh5 {[%clk 0:00:03]} 50. Kg3 {[%clk 0:00:46]}  Bd7 {[%clk 0:00:02]} 51. Rh4# {[%clk 0:00:46]} 1-0


[Site "https://www.chess.com"]

[Event "Titled Tuesday Blitz June 21 Early 2022"]
[White "Hosseinzadeh, Nima"]
[Black "Melikhov, Evgeny V."]
[WhiteFideId "12505323"]
[BlackFideId "4122046"]
[WhiteElo "2066"]
[BlackElo "1904"]
[Result "1-0"]
[Round "04"]
[TimeControl "180+1"]
[Date "2022.06.21"]
[WhiteClock "0:01:12"]
[BlackClock "0:00:25"]

1. e4 {[%clk 0:02:55]}  e5 {[%clk 0:02:57]} 2. Nf3 {[%clk 0:02:55]}  Nc6 {[%clk 0:02:57]} 3. Bb5 {[%clk 0:02:56]}  a6 {[%clk 0:02:56]} 4. Ba4 {[%clk 0:02:56]}  Nf6 {[%clk 0:02:55]} 5. O-O {[%clk 0:02:57]}  Nxe4 {[%clk 0:02:55]} 6. d4 {[%clk 0:02:57]}  b5 {[%clk 0:02:55]} 7. Bb3 {[%clk 0:02:58]}  d5 {[%clk 0:02:55]} 8. dxe5 {[%clk 0:02:58]}  Be6 {[%clk 0:02:56]} 9. Nbd2 {[%clk 0:02:58]}  Bc5 {[%clk 0:02:55]} 10. Qe2 {[%clk 0:02:44]}  Nxd2 {[%clk 0:02:44]} 11. Bxd2 {[%clk 0:02:45]}  O-O {[%clk 0:02:42]} 12. c3 {[%clk 0:02:37]}  f6 {[%clk 0:02:34]} 13. Be3 {[%clk 0:02:23]}  Bxe3 {[%clk 0:02:27]} 14. Qxe3 {[%clk 0:02:23]}  fxe5 {[%clk 0:02:15]} 15. Nxe5 {[%clk 0:02:19]}  Qd6 {[%clk 0:02:14]} 16. Nxc6 {[%clk 0:02:12]}  Qxc6 {[%clk 0:02:13]} 17. Rae1 {[%clk 0:02:13]}  Bf7 {[%clk 0:01:50]} 18. Bc2 {[%clk 0:01:54]}  Bg6 {[%clk 0:01:45]} 19. Bxg6 {[%clk 0:01:52]}  Qxg6 {[%clk 0:01:45]} 20. Qe6+ {[%clk 0:01:53]}  Qxe6 {[%clk 0:01:44]} 21. Rxe6 {[%clk 0:01:53]}  Rfe8 {[%clk 0:01:41]} 22. Rfe1 {[%clk 0:01:50]}  Kf7 {[%clk 0:01:40]} 23. Rxe8 {[%clk 0:01:45]}  Rxe8 {[%clk 0:01:40]} 24. Rxe8 {[%clk 0:01:46]}  Kxe8 {[%clk 0:01:40]} 25. b4 {[%clk 0:01:38]}  Ke7 {[%clk 0:01:40]} 26. f4 {[%clk 0:01:33]}  Kd6 {[%clk 0:01:40]} 27. Kf2 {[%clk 0:01:31]}  c5 {[%clk 0:01:40]} 28. Ke3 {[%clk 0:01:29]}  d4+ {[%clk 0:01:24]} 29. cxd4 {[%clk 0:01:24]}  cxb4 {[%clk 0:01:24]} 30. g4 {[%clk 0:01:18]}  Kd5 {[%clk 0:01:21]} 31. Kd3 {[%clk 0:01:15]}  a5 {[%clk 0:01:20]} 32. f5 {[%clk 0:01:14]}  a4 {[%clk 0:01:10]} 33. g5 {[%clk 0:01:14]}  b3 {[%clk 0:00:50]} 34. axb3 {[%clk 0:01:13]}  axb3 {[%clk 0:00:26]} 35. Kc3 {[%clk 0:01:12]}  b2 {[%clk 0:00:25]} 36. Kxb2 {[%clk 0:01:12]} 1-0


[Site "https://www.chess.com"]

[Event "Titled Tuesday Blitz June 21 Early 2022"]
[White "Ianov, Viktor"]
[Black "Jakubowska, Anna"]
[WhiteFideId "14102730"]
[BlackFideId "1121952"]
[WhiteElo "2152"]
[BlackElo "1878"]
[Result "1-0"]
[Round "04"]
[TimeControl "180+1"]
[Date "2022.06.21"]
[WhiteClock "0:01:30"]
[BlackClock "0:00:13"]

1. Nf3 {[%clk 0:03:00]}  f5 {[%clk 0:02:58]} 2. g3 {[%clk 0:03:00]}  Nf6 {[%clk 0:02:57]} 3. Bg2 {[%clk 0:03:00]}  g6 {[%clk 0:02:58]} 4. c4 {[%clk 0:03:00]}  Bg7 {[%clk 0:02:58]} 5. Nc3 {[%clk 0:03:00]}  O-O {[%clk 0:02:58]} 6. O-O {[%clk 0:02:59]}  d6 {[%clk 0:02:58]} 7. d3 {[%clk 0:02:59]}  e5 {[%clk 0:02:58]} 8. Rb1 {[%clk 0:03:00]}  h6 {[%clk 0:02:51]} 9. b4 {[%clk 0:02:59]}  g5 {[%clk 0:02:45]} 10. b5 {[%clk 0:02:59]}  f4 {[%clk 0:02:45]} 11. Nd2 {[%clk 0:02:59]}  g4 {[%clk 0:02:36]} 12. a4 {[%clk 0:02:57]}  Nbd7 {[%clk 0:02:32]} 13. Ba3 {[%clk 0:02:57]}  Nc5 {[%clk 0:02:32]} 14. Nb3 {[%clk 0:02:53]}  Nxb3 {[%clk 0:02:24]} 15. Qxb3 {[%clk 0:02:53]}  Kh8 {[%clk 0:02:21]} 16. c5 {[%clk 0:02:50]}  Bf5 {[%clk 0:01:59]} 17. Bxb7 {[%clk 0:02:47]}  Rb8 {[%clk 0:01:59]} 18. Bc6 {[%clk 0:02:46]}  f3 {[%clk 0:01:59]} 19. exf3 {[%clk 0:02:40]}  Bxd3 {[%clk 0:01:58]} 20. cxd6 {[%clk 0:02:39]}  Bxb1 {[%clk 0:01:42]} 21. Qxb1 {[%clk 0:02:35]}  cxd6 {[%clk 0:01:41]} 22. Rd1 {[%clk 0:02:35]}  gxf3 {[%clk 0:01:11]} 23. Bxd6 {[%clk 0:02:32]}  Qb6 {[%clk 0:01:01]} 24. Bxb8 {[%clk 0:02:17]}  Ng4 {[%clk 0:00:52]} 25. Ne4 {[%clk 0:02:07]}  Rxb8 {[%clk 0:00:51]} 26. Qd3 {[%clk 0:02:05]}  Rf8 {[%clk 0:00:37]} 27. h3 {[%clk 0:01:55]}  Nf6 {[%clk 0:00:33]} 28. Nd6 {[%clk 0:01:50]}  Nh5 {[%clk 0:00:21]} 29. Qg6 {[%clk 0:01:40]}  Nf6 {[%clk 0:00:17]} 30. Nf7+ {[%clk 0:01:38]}  Rxf7 {[%clk 0:00:15]} 31. Qxf7 {[%clk 0:01:37]}  Qc5 {[%clk 0:00:15]} 32. Rd8+ {[%clk 0:01:34]}  Kh7 {[%clk 0:00:14]} 33. Bxf3 {[%clk 0:01:33]}  Qc1+ {[%clk 0:00:13]} 34. Kg2 {[%clk 0:01:32]}  e4 {[%clk 0:00:13]} 35. Bxe4+ {[%clk 0:01:30]}  Nxe4 {[%clk 0:00:13]} 36. Qf5# {[%clk 0:01:30]} 1-0


[Site "https://www.chess.com"]

[Event "Titled Tuesday Blitz June 21 Early 2022"]
[White "Karas, Marek"]
[Black "Kononenko, Dmitry"]
[WhiteFideId "14928558"]
[BlackFideId "14113538"]
[WhiteElo "2271"]
[BlackElo "2145"]
[Result "1/2-1/2"]
[Round "04"]
[TimeControl "180+1"]
[Date "2022.06.21"]
[WhiteClock "0:00:18"]
[BlackClock "0:00:32"]

1. d4 {[%clk 0:03:00]}  Nf6 {[%clk 0:02:59]} 2. Nf3 {[%clk 0:03:01]}  d5 {[%clk 0:02:54]} 3. c4 {[%clk 0:03:00]}  c6 {[%clk 0:02:55]} 4. Nc3 {[%clk 0:03:00]}  e6 {[%clk 0:02:55]} 5. g3 {[%clk 0:03:00]}  dxc4 {[%clk 0:02:53]} 6. Bg2 {[%clk 0:03:00]}  Bb4 {[%clk 0:02:52]} 7. O-O {[%clk 0:03:00]}  O-O {[%clk 0:02:50]} 8. Ne5 {[%clk 0:02:52]}  Nbd7 {[%clk 0:02:49]} 9. Nxc4 {[%clk 0:02:52]}  Qc7 {[%clk 0:02:49]} 10. Bf4 {[%clk 0:02:50]}  Qd8 {[%clk 0:02:48]} 11. Nd6 {[%clk 0:02:47]}  Nb6 {[%clk 0:02:41]} 12. Nxc8 {[%clk 0:02:39]}  Rxc8 {[%clk 0:02:42]} 13. Qb3 {[%clk 0:02:38]}  Bd6 {[%clk 0:02:40]} 14. Bg5 {[%clk 0:02:33]}  Be7 {[%clk 0:02:39]} 15. Rfd1 {[%clk 0:02:32]}  Nfd5 {[%clk 0:02:35]} 16. Bd2 {[%clk 0:02:30]}  Qc7 {[%clk 0:02:29]} 17. Rac1 {[%clk 0:02:28]}  Qb8 {[%clk 0:02:21]} 18. e4 {[%clk 0:02:13]}  Nxc3 {[%clk 0:02:15]} 19. bxc3 {[%clk 0:01:56]}  Rfd8 {[%clk 0:02:14]} 20. a4 {[%clk 0:01:51]}  Qc7 {[%clk 0:02:10]} 21. Rb1 {[%clk 0:01:44]}  Rb8 {[%clk 0:01:54]} 22. h4 {[%clk 0:01:00]}  h6 {[%clk 0:01:48]} 23. Be3 {[%clk 0:00:41]}  Rd7 {[%clk 0:01:35]} 24. c4 {[%clk 0:00:26]}  Rbd8 {[%clk 0:01:31]} 25. c5 {[%clk 0:00:13]}  Na8 {[%clk 0:01:31]} 26. d5 {[%clk 0:00:11]}  cxd5 {[%clk 0:01:22]} 27. exd5 {[%clk 0:00:12]}  Bxc5 {[%clk 0:01:11]} 28. dxe6 {[%clk 0:00:11]}  Rxd1+ {[%clk 0:01:10]} 29. Rxd1 {[%clk 0:00:12]}  Rxd1+ {[%clk 0:01:11]} 30. Qxd1 {[%clk 0:00:11]}  fxe6 {[%clk 0:01:05]} 31. Bxc5 {[%clk 0:00:09]}  Qxc5 {[%clk 0:01:06]} 32. Qd8+ {[%clk 0:00:03]}  Qf8 {[%clk 0:01:06]} 33. Qd7 {[%clk 0:00:02]}  Nb6 {[%clk 0:01:01]} 34. Qxe6+ {[%clk 0:00:02]}  Qf7 {[%clk 0:00:55]} 35. Qxf7+ {[%clk 0:00:01]}  Kxf7 {[%clk 0:00:55]} 36. a5 {[%clk 0:00:02]}  Nd7 {[%clk 0:00:49]} 37. Bxb7 {[%clk 0:00:03]}  Ke7 {[%clk 0:00:49]} 38. a6 {[%clk 0:00:03]}  Kd6 {[%clk 0:00:49]} 39. f4 {[%clk 0:00:02]}  Nc5 {[%clk 0:00:50]} 40. Kf2 {[%clk 0:00:02]}  Nxb7 {[%clk 0:00:46]} 41. axb7 {[%clk 0:00:03]}  Kc7 {[%clk 0:00:47]} 42. g4 {[%clk 0:00:02]}  Kxb7 {[%clk 0:00:48]} 43. g5 {[%clk 0:00:03]}  Kc7 {[%clk 0:00:44]} 44. f5 {[%clk 0:00:03]}  hxg5 {[%clk 0:00:23]} 45. hxg5 {[%clk 0:00:04]}  Kd7 {[%clk 0:00:20]} 46. f6 {[%clk 0:00:03]}  gxf6 {[%clk 0:00:19]} 47. gxf6 {[%clk 0:00:04]}  Ke6 {[%clk 0:00:20]} 48. Ke3 {[%clk 0:00:03]}  Kxf6 {[%clk 0:00:21]} 49. Kd4 {[%clk 0:00:04]}  Ke6 {[%clk 0:00:21]} 50. Kc5 {[%clk 0:00:05]}  Kd7 {[%clk 0:00:21]} 51. Kb5 {[%clk 0:00:05]}  Kd8 {[%clk 0:00:22]} 52. Ka5 {[%clk 0:00:06]}  Kc7 {[%clk 0:00:22]} 53. Ka6 {[%clk 0:00:07]}  Kb8 {[%clk 0:00:23]} 54. Ka5 {[%clk 0:00:07]}  Kb7 {[%clk 0:00:24]} 55. Kb5 {[%clk 0:00:08]}  a6+ {[%clk 0:00:24]} 56. Ka5 {[%clk 0:00:08]}  Ka7 {[%clk 0:00:25]} 57. Ka4 {[%clk 0:00:09]}  Kb6 {[%clk 0:00:26]} 58. Ka3 {[%clk 0:00:10]}  Ka5 {[%clk 0:00:27]} 59. Ka2 {[%clk 0:00:11]}  Kb4 {[%clk 0:00:27]} 60. Ka1 {[%clk 0:00:12]}  Kb3 {[%clk 0:00:28]} 61. Kb1 {[%clk 0:00:13]}  Ka3 {[%clk 0:00:28]} 62. Ka1 {[%clk 0:00:14]}  a5 {[%clk 0:00:29]} 63. Kb1 {[%clk 0:00:14]}  Kb3 {[%clk 0:00:29]} 64. Ka1 {[%clk 0:00:15]}  Kc2 {[%clk 0:00:30]} 65. Ka2 {[%clk 0:00:16]}  Kc3 {[%clk 0:00:30]} 66. Ka3 {[%clk 0:00:17]}  Kc4 {[%clk 0:00:31]} 67. Ka4 {[%clk 0:00:17]}  Kc3 {[%clk 0:00:32]} 68. Kxa5 {[%clk 0:00:18]} 1/2-1/2


[Site "https://www.chess.com"]

[Event "Titled Tuesday Blitz June 21 Early 2022"]
[White "Krishnan, Varun"]
[Black "Baches Garcia, Guillermo"]
[WhiteFideId "5054508"]
[BlackFideId "2209764"]
[WhiteElo "2587"]
[BlackElo "2449"]
[Result "0-1"]
[Round "04"]
[TimeControl "180+1"]
[Date "2022.06.21"]
[WhiteClock "0:00:33"]
[BlackClock "0:00:09"]

1. e4 {[%clk 0:02:45]}  c5 {[%clk 0:03:00]} 2. Nf3 {[%clk 0:02:45]}  d6 {[%clk 0:03:00]} 3. d4 {[%clk 0:02:44]}  cxd4 {[%clk 0:03:01]} 4. Nxd4 {[%clk 0:02:41]}  Nf6 {[%clk 0:03:01]} 5. Nc3 {[%clk 0:02:41]}  Nc6 {[%clk 0:03:02]} 6. Bc4 {[%clk 0:02:34]}  Bd7 {[%clk 0:03:01]} 7. O-O {[%clk 0:02:33]}  g6 {[%clk 0:03:00]} 8. Be3 {[%clk 0:02:29]}  Ng4 {[%clk 0:03:00]} 9. Bb3 {[%clk 0:02:07]}  Bg7 {[%clk 0:02:15]} 10. Nxc6 {[%clk 0:01:58]}  bxc6 {[%clk 0:02:13]} 11. Bd2 {[%clk 0:01:58]}  O-O {[%clk 0:02:12]} 12. h3 {[%clk 0:01:58]}  Nf6 {[%clk 0:02:08]} 13. e5 {[%clk 0:01:58]}  dxe5 {[%clk 0:02:07]} 14. Qf3 {[%clk 0:01:57]}  Bxh3 {[%clk 0:01:48]} 15. Bg5 {[%clk 0:01:49]}  Bd7 {[%clk 0:01:37]} 16. Rad1 {[%clk 0:01:43]}  Qc7 {[%clk 0:01:32]} 17. Bxf6 {[%clk 0:01:27]}  Bxf6 {[%clk 0:01:07]} 18. Ne4 {[%clk 0:01:25]}  Kg7 {[%clk 0:01:05]} 19. Kh2 {[%clk 0:01:08]}  Rad8 {[%clk 0:00:59]} 20. Rh1 {[%clk 0:01:01]}  h5 {[%clk 0:00:54]} 21. Nxf6 {[%clk 0:00:59]}  exf6 {[%clk 0:00:50]} 22. Qe3 {[%clk 0:00:59]}  Bg4 {[%clk 0:00:45]} 23. f3 {[%clk 0:00:59]}  e4+ {[%clk 0:00:41]} 24. g3 {[%clk 0:00:45]}  Bxf3 {[%clk 0:00:36]} 25. Rxd8 {[%clk 0:00:43]}  Rxd8 {[%clk 0:00:34]} 26. Re1 {[%clk 0:00:43]}  h4 {[%clk 0:00:31]} 27. Qf4 {[%clk 0:00:42]}  Rd2+ {[%clk 0:00:15]} 28. Kg1 {[%clk 0:00:38]}  Rg2+ {[%clk 0:00:10]} 29. Kf1 {[%clk 0:00:38]}  Qxf4 {[%clk 0:00:10]} 30. gxf4 {[%clk 0:00:39]}  h3 {[%clk 0:00:10]} 31. Bxf7 {[%clk 0:00:33]}  h2 {[%clk 0:00:09]} 0-1


[Site "https://www.chess.com"]

[Event "Titled Tuesday Blitz June 21 Early 2022"]
[White "Kvaloy, Aksel Bu"]
[Black "Clasby, Derek"]
[WhiteFideId "1528815"]
[BlackFideId "30932300"]
[WhiteElo "2006"]
[BlackElo "2013"]
[Result "0-1"]
[Round "04"]
[TimeControl "180+1"]
[Date "2022.06.21"]
[WhiteClock "0:00:07"]
[BlackClock "0:00:08"]

1. e4 {[%clk 0:03:00]}  c6 {[%clk 0:02:58]} 2. Nc3 {[%clk 0:02:57]}  d5 {[%clk 0:02:59]} 3. Nf3 {[%clk 0:02:57]}  dxe4 {[%clk 0:02:59]} 4. Nxe4 {[%clk 0:02:56]}  Nf6 {[%clk 0:03:00]} 5. Nxf6+ {[%clk 0:02:57]}  gxf6 {[%clk 0:03:00]} 6. d4 {[%clk 0:02:54]}  Bf5 {[%clk 0:03:00]} 7. Bd3 {[%clk 0:02:52]}  e6 {[%clk 0:03:00]} 8. Bxf5 {[%clk 0:02:51]}  Qa5+ {[%clk 0:03:01]} 9. Qd2 {[%clk 0:02:45]}  Qxf5 {[%clk 0:03:02]} 10. c3 {[%clk 0:02:41]}  Bd6 {[%clk 0:02:59]} 11. Qe2 {[%clk 0:02:34]}  Rg8 {[%clk 0:02:55]} 12. Bd2 {[%clk 0:02:26]}  Nd7 {[%clk 0:02:50]} 13. O-O-O {[%clk 0:02:24]}  O-O-O {[%clk 0:02:44]} 14. h3 {[%clk 0:02:23]}  Rxg2 {[%clk 0:02:28]} 15. Nh4 {[%clk 0:02:01]}  Qxf2 {[%clk 0:02:27]} 16. Qe4 {[%clk 0:02:01]}  Rg7 {[%clk 0:01:40]} 17. Rdf1 {[%clk 0:01:52]}  f5 {[%clk 0:01:23]} 18. Rxf2 {[%clk 0:01:29]}  fxe4 {[%clk 0:01:23]} 19. Bh6 {[%clk 0:01:29]}  Rdg8 {[%clk 0:00:38]} 20. Bxg7 {[%clk 0:01:24]}  Rxg7 {[%clk 0:00:39]} 21. Rg2 {[%clk 0:01:15]}  Rxg2 {[%clk 0:00:36]} 22. Nxg2 {[%clk 0:01:16]}  f5 {[%clk 0:00:33]} 23. Rf1 {[%clk 0:01:01]}  Kd8 {[%clk 0:00:31]} 24. Kd2 {[%clk 0:00:58]}  Ke7 {[%clk 0:00:30]} 25. Ke3 {[%clk 0:00:56]}  b5 {[%clk 0:00:28]} 26. Nf4 {[%clk 0:00:56]}  Nb6 {[%clk 0:00:25]} 27. b3 {[%clk 0:00:52]}  Bxf4+ {[%clk 0:00:22]} 28. Kxf4 {[%clk 0:00:52]}  Nd5+ {[%clk 0:00:23]} 29. Ke5 {[%clk 0:00:51]}  Nxc3 {[%clk 0:00:19]} 30. Rc1 {[%clk 0:00:51]}  b4 {[%clk 0:00:20]} 31. a3 {[%clk 0:00:49]}  a5 {[%clk 0:00:21]} 32. axb4 {[%clk 0:00:48]}  axb4 {[%clk 0:00:21]} 33. Ra1 {[%clk 0:00:40]}  e3 {[%clk 0:00:22]} 34. Ra7+ {[%clk 0:00:39]}  Kd8 {[%clk 0:00:20]} 35. Kxe6 {[%clk 0:00:36]}  e2 {[%clk 0:00:20]} 36. Ra1 {[%clk 0:00:19]}  f4 {[%clk 0:00:19]} 37. Kd6 {[%clk 0:00:17]}  Kc8 {[%clk 0:00:10]} 38. Kxc6 {[%clk 0:00:16]}  Kb8 {[%clk 0:00:10]} 39. Rg1 {[%clk 0:00:15]}  f3 {[%clk 0:00:07]} 40. Rg8+ {[%clk 0:00:13]}  Ka7 {[%clk 0:00:07]} 41. Rg7+ {[%clk 0:00:13]}  Ka6 {[%clk 0:00:08]} 42. Rg8 {[%clk 0:00:13]}  Nb5 {[%clk 0:00:09]} 43. Rg1 {[%clk 0:00:04]}  f2 {[%clk 0:00:08]} 44. Ra1+ {[%clk 0:00:03]}  Na3 {[%clk 0:00:08]} 45. d5 {[%clk 0:00:03]}  e1=Q {[%clk 0:00:08]} 46. d6 {[%clk 0:00:04]}  Qxa1 {[%clk 0:00:08]} 47. d7 {[%clk 0:00:04]}  Qc3+ {[%clk 0:00:09]} 48. Kd6 {[%clk 0:00:05]}  Qd4+ {[%clk 0:00:09]} 49. Kc7 {[%clk 0:00:06]}  f1=Q {[%clk 0:00:09]} 50. Kb8 {[%clk 0:00:06]}  Qa7+ {[%clk 0:00:08]} 51. Kc8 {[%clk 0:00:06]}  Qb7+ {[%clk 0:00:08]} 52. Kd8 {[%clk 0:00:07]}  Qf8# {[%clk 0:00:08]} 0-1


[Site "https://www.chess.com"]

[Event "Titled Tuesday Blitz June 21 Early 2022"]
[White "Lianes Garcia, Marcos"]
[Black "Borisova, Ekaterina"]
[WhiteFideId "32060777"]
[BlackFideId "34124184"]
[WhiteElo "2310"]
[BlackElo "2039"]
[Result "0-1"]
[Round "04"]
[TimeControl "180+1"]
[Date "2022.06.21"]
[WhiteClock "0:00:09"]
[BlackClock "0:00:32"]

1. e4 {[%clk 0:03:00]}  c5 {[%clk 0:02:57]} 2. g3 {[%clk 0:03:00]}  e6 {[%clk 0:02:53]} 3. Bg2 {[%clk 0:03:00]}  Nc6 {[%clk 0:02:53]} 4. Ne2 {[%clk 0:03:00]}  Nge7 {[%clk 0:02:52]} 5. O-O {[%clk 0:02:59]}  d5 {[%clk 0:02:51]} 6. exd5 {[%clk 0:02:59]}  Nxd5 {[%clk 0:02:52]} 7. d4 {[%clk 0:03:00]}  cxd4 {[%clk 0:02:47]} 8. Nxd4 {[%clk 0:03:01]}  Bd7 {[%clk 0:02:45]} 9. c4 {[%clk 0:03:00]}  Nf6 {[%clk 0:02:44]} 10. Nc3 {[%clk 0:02:55]}  Bc5 {[%clk 0:02:40]} 11. Be3 {[%clk 0:02:48]}  Nxd4 {[%clk 0:02:38]} 12. Bxd4 {[%clk 0:02:49]}  Bxd4 {[%clk 0:02:38]} 13. Qxd4 {[%clk 0:02:49]}  Bc6 {[%clk 0:02:39]} 14. Bxc6+ {[%clk 0:02:45]}  bxc6 {[%clk 0:02:38]} 15. Qc5 {[%clk 0:02:45]}  Qb6 {[%clk 0:02:37]} 16. Qa3 {[%clk 0:02:25]}  a5 {[%clk 0:02:34]} 17. Qd6 {[%clk 0:01:13]}  Rd8 {[%clk 0:02:32]} 18. Qe5 {[%clk 0:01:12]}  O-O {[%clk 0:02:13]} 19. b3 {[%clk 0:01:12]}  Nd7 {[%clk 0:02:06]} 20. Qg5 {[%clk 0:01:01]}  h6 {[%clk 0:02:01]} 21. Qh5 {[%clk 0:01:01]}  Qc5 {[%clk 0:01:56]} 22. Qf3 {[%clk 0:00:59]}  Ne5 {[%clk 0:01:55]} 23. Qe4 {[%clk 0:00:58]}  Rd3 {[%clk 0:01:52]} 24. Na4 {[%clk 0:00:55]}  Qd4 {[%clk 0:01:49]} 25. Qxd4 {[%clk 0:00:56]}  Rxd4 {[%clk 0:01:50]} 26. Kg2 {[%clk 0:00:54]}  Rfd8 {[%clk 0:01:49]} 27. Rfe1 {[%clk 0:00:54]}  Nd3 {[%clk 0:01:48]} 28. Re2 {[%clk 0:00:53]}  e5 {[%clk 0:01:45]} 29. Nc3 {[%clk 0:00:49]}  f5 {[%clk 0:01:44]} 30. h4 {[%clk 0:00:46]}  Kf7 {[%clk 0:01:43]} 31. Rb1 {[%clk 0:00:43]}  Kf6 {[%clk 0:01:43]} 32. a3 {[%clk 0:00:43]}  e4 {[%clk 0:01:43]} 33. f3 {[%clk 0:00:42]}  exf3+ {[%clk 0:01:21]} 34. Kxf3 {[%clk 0:00:43]}  g5 {[%clk 0:01:22]} 35. hxg5+ {[%clk 0:00:42]}  hxg5 {[%clk 0:01:23]} 36. Rh1 {[%clk 0:00:40]}  Ne5+ {[%clk 0:01:14]} 37. Kg2 {[%clk 0:00:40]}  f4 {[%clk 0:01:14]} 38. gxf4 {[%clk 0:00:35]}  gxf4 {[%clk 0:01:15]} 39. Ne4+ {[%clk 0:00:34]}  Kg6 {[%clk 0:01:08]} 40. Kf2 {[%clk 0:00:25]}  f3 {[%clk 0:00:48]} 41. Rg1+ {[%clk 0:00:25]}  Kf5 {[%clk 0:00:34]} 42. Ree1 {[%clk 0:00:12]}  Rxe4 {[%clk 0:00:32]} 43. Rg5+ {[%clk 0:00:08]}  Kxg5 {[%clk 0:00:31]} 44. Rxe4 {[%clk 0:00:09]}  Kf5 {[%clk 0:00:31]} 45. Rh4 {[%clk 0:00:09]}  Rd2+ {[%clk 0:00:31]} 46. Ke3 {[%clk 0:00:10]}  Re2+ {[%clk 0:00:32]} 47. Kd4 {[%clk 0:00:09]}  f2 {[%clk 0:00:32]} 0-1


[Site "https://www.chess.com"]

[Event "Titled Tuesday Blitz June 21 Early 2022"]
[White "Mahdavi, Reza"]
[Black "Kamsky, Gata"]
[WhiteFideId "12595926"]
[BlackFideId "2000024"]
[WhiteElo "2265"]
[BlackElo "2645"]
[Result "1/2-1/2"]
[Round "04"]
[TimeControl "180+1"]
[Date "2022.06.21"]
[WhiteClock "0:02:29"]
[BlackClock "0:02:16"]

1. e4 {[%clk 0:03:00]}  e5 {[%clk 0:02:59]} 2. Nf3 {[%clk 0:03:01]}  Nc6 {[%clk 0:02:59]} 3. Nc3 {[%clk 0:03:01]}  Nf6 {[%clk 0:02:59]} 4. d4 {[%clk 0:03:02]}  exd4 {[%clk 0:02:59]} 5. Nxd4 {[%clk 0:03:03]}  Bb4 {[%clk 0:02:59]} 6. Nxc6 {[%clk 0:03:03]}  bxc6 {[%clk 0:03:00]} 7. Bd3 {[%clk 0:03:04]}  d5 {[%clk 0:02:59]} 8. exd5 {[%clk 0:03:05]}  cxd5 {[%clk 0:02:59]} 9. O-O {[%clk 0:03:06]}  O-O {[%clk 0:02:59]} 10. h3 {[%clk 0:03:06]}  c6 {[%clk 0:02:59]} 11. Qf3 {[%clk 0:03:07]}  a5 {[%clk 0:02:52]} 12. Bf4 {[%clk 0:03:08]}  a4 {[%clk 0:02:48]} 13. a3 {[%clk 0:03:07]}  Bd6 {[%clk 0:02:48]} 14. Ne2 {[%clk 0:03:08]}  Rb8 {[%clk 0:02:42]} 15. b4 {[%clk 0:02:56]}  axb3 {[%clk 0:02:36]} 16. cxb3 {[%clk 0:02:57]}  Bxf4 {[%clk 0:02:33]} 17. Nxf4 {[%clk 0:02:57]}  c5 {[%clk 0:02:24]} 18. Rfd1 {[%clk 0:02:54]}  d4 {[%clk 0:02:23]} 19. Bc4 {[%clk 0:02:49]}  Qd6 {[%clk 0:02:16]} 20. Nd5 {[%clk 0:02:29]} 1/2-1/2


[Site "https://www.chess.com"]